lending/lending_fUSD_20250408
["ID","MTS","AMOUNT","RATE_DAILY","PERIOD"]
[357447989,1744070403673,-28.98288565,0.000149,2]
[357447990,1744070403706,-471.01711435,0.000149,2]
[357447991,1744070766347,1346.0,0.00042816,31]
[357447992,1744070766646,1346.0,0.00042816,31]
[357447993,1744070767030,1347.0,0.00042816,31]
[357447994,1744070767816,1346.0,0.00042816,31]
[357447995,1744070877745,1281.0,0.00042816,120]
[357447996,1744070883277,768.39,0.00035671,120]
[357447997,1744071031821,-0.84208565,0.000149,2]
[357447999,1744071031832,-500.0,0.000149,2]
[357448002,1744071031843,-250.0,0.00015595,2]
[357448003,1744071031853,-160.52535,0.0001629,2]
[357448004,1744071031863,-250.0,0.0001639,2]
[357448005,1744071031873,-250.0,0.0001639,2]
[357448006,1744071031883,-659.4432,0.00018695,2]
[357448007,1744071031893,-1408.12,0.00018795,2]
[357448008,1744071031903,-250.0,0.00019124,2]
[357448009,1744071031913,-161.24911522,0.00019413,2]
[357448010,1744071031923,-59.94200774,0.00019459,2]
[357448011,1744071031984,-1290.09099226,0.00019459,2]
[357448012,1744071031994,-1750.65680387,0.00019459,2]
[357448013,1744071032006,-595.39054192,0.00019459,2]
[357448014,1744071032018,-4873.03523845,0.00019459,2]
[357448015,1744071032030,-350.49185435,0.00019459,2]
[357448016,1744071032043,-1885.6802487,0.00019459,2]
[357448017,1744071032055,-6350.10617789,0.00019459,2]
[357448018,1744071032067,-298.695,0.00019459,2]
[357448019,1744071032079,-395.36033482,0.00019459,2]
[357448020,1744071032089,-304.63966518,0.00019513,2]
[357448021,1744071032101,-504.42,0.00019513,2]
[357448022,1744071032113,-1941.94033482,0.00019513,2]
[357448023,1744071032122,-300.0,0.00019558,2]
[357448024,1744071032132,-836.14,0.00019559,2]
[357448025,1744071032142,-159.47,0.00019559,2]
[357448026,1744071032151,-161.24911521,0.000196,2]
[357448027,1744071032162,-1037.51,0.00019614,2]
[357448028,1744071032172,-205.05040866,0.00019631,2]
[357448029,1744071032184,-1909.70979623,0.00019631,2]
[357448030,1744071032211,-7702.67026752,0.00019631,2]
[357448031,1744071032222,-7039.80060688,0.00019631,2]
[357448032,1744071032234,-670.10007224,0.00019631,2]
[357448033,1744071032248,-445.49189213,0.00019631,2]
[357448034,1744071032260,-1399.93190357,0.00019631,2]
[357448035,1744071032271,-326.5544917,0.00019631,2]
[357448036,1744071032283,-601.40263852,0.00019631,2]
[357448037,1744071032297,-322.9200006,0.00019631,2]
[357448038,1744071032352,-82.40988672,0.00019631,2]
[357448039,1744071032363,-256.30524864,0.00019631,2]
[357448040,1744071032395,-5061.16061818,0.00019631,2]
[357448041,1744071032407,-2453.44955276,0.00019631,2]
[357448049,1744071037932,-6480.18261565,0.00019631,2]
[357448050,1744071037942,-713.0,0.00019699,2]
[357448051,1744071037952,-3094.3712,0.000197,2]
[357448052,1744071037963,-1424.691,0.000197,2]
[357448053,1744071037972,-224.1887,0.000197,2]
[357448054,1744071037981,-268.6891,0.000197,2]
[357448055,1744071037991,-22055.54586477,0.0001979,2]
[357448056,1744071038002,-7452.0545,0.000198,2]
[357448057,1744071038012,-36055.9761,0.000198,2]
[357448058,1744071038021,-6444.8363,0.000198,2]
[357448059,1744071038031,-1242.9857,0.000198,2]
[357448060,1744071038041,-1716.9914,0.000198,2]
[357448061,1744071038052,-631.6895,0.000198,2]
[357448062,1744071038061,-3883.6895,0.000198,2]
[357448063,1744071038071,-8166.8268,0.000198,2]
[357448064,1744071038081,-1000.0,0.000198,2]
[357448065,1744071038093,-3704.31427939,0.000198,2]
[357448066,1744071038104,-1540.61030364,0.000198,2]
[357448067,1744071038115,-627.61649704,0.000198,2]
[357448068,1744071038125,-2500.0,0.000198,2]
[357448069,1744071038136,-167.45018125,0.000198,2]
[357448070,1744071038147,-181.28999371,0.00019899,2]
[357448071,1744071038158,-156.94133875,0.00019899,2]
[357448072,1744071038168,-182.31399246,0.000199,2]
[357448073,1744071038179,-84963.87805264,0.000199,2]
[357448074,1744071038195,-957.69999998,0.000199,2]
[357448075,1744071038207,-615.0,0.000199,2]
[357448076,1744071038223,-11334.69765687,0.000199,2]
[357448077,1744071038236,-2137.3229705,0.000199,2]
[357448078,1744071038253,-1465.1328659,0.000199,2]
[357448079,1744071038291,-3486.83319092,0.000199,2]
[357448080,1744071038303,-603.465158,0.000199,2]
[357448081,1744071038314,-848.6840014,0.000199,2]
[357448082,1744071038331,-363.240668,0.000199,2]
[357448084,1744071038343,-1392.68663958,0.000199,2]
[357448086,1744071038354,-1900.86494225,0.000199,2]
[357448089,1744071038373,-134294.72516712,0.000199,2]
[357448091,1744071038385,-9061.49703077,0.000199,2]
[357448262,1744071040162,-1375.4138,0.000198,2]
[357448265,1744071040176,-803.24021193,0.000198,2]
[357448267,1744071040188,-1011.06427204,0.000198,2]
[357448276,1744071040279,-3167.05644648,0.000198,2]
[357448289,1744071040402,-29699.20136955,0.000198,2]
[357448291,1744071040414,-39701.60359191,0.000199,2]
[357448293,1744071040427,-25519.26104217,0.000199,2]
[357448295,1744071040440,-1160.8179326,0.000199,2]
[357448595,1744071043693,-26866.52563465,0.000199,2]
[357448598,1744071043706,-857.32848695,0.000199,2]
[357450628,1744071359633,-1440.2,0.00017381,2]
[357450629,1744071359660,-23900.0,0.00019298,2]
[357450630,1744071359684,-300.0,0.00019532,2]
[357450631,1744071359707,-40359.8,0.00019533,2]
[357450632,1744071510746,804.633,0.00035106,41]
[357450634,1744071615461,899.9999999,0.0004,41]
[357450642,1744071914428,2902287.58524478,0.00042826,30]
[357450643,1744071928700,704.35,0.00035671,120]
[357450646,1744072053163,969.91,0.0004,30]
[357450649,1744072097942,-172.640946,0.00014925,2]
[357450650,1744072123991,-2708.89335889,0.000149,2]
[357450651,1744072131805,-9144.55473286,0.00015,2]
[357450652,1744072132101,-6900.85631567,0.00015,2]
[357450657,1744072156653,-300.0,0.00014999,2]
[357450658,1744072156683,-9165.46295383,0.00015,2]
[357450659,1744072156729,-5290.95574861,0.00015,2]
[357450661,1744072181723,-8801.92625816,0.00015,2]
[357450662,1744072206917,-2870.38,0.0001499,2]
[357450663,1744072206950,-1702.91563938,0.0001499,2]
[357450664,1744072210892,151.0,0.0004,30]
[357450665,1744072211196,151.0,0.0004,30]
[357450666,1744072211425,151.0,0.0004,30]
[357450667,1744072212087,151.0,0.0004,30]
[357450668,1744072212718,151.0,0.0004,30]
[357450669,1744072213408,151.0,0.0004,30]
[357450670,1744072214026,151.0,0.0004,30]
[357450671,1744072214742,151.0,0.0004,30]
[357450672,1744072215346,151.0,0.0004,30]
[357450673,1744072216018,151.0,0.0004,30]
[357450674,1744072216660,240.99468927,0.0004,30]
[357450681,1744072231946,-300.0,0.00014999,2]
[357450682,1744072231956,-11755.20306442,0.00015,2]
[357450683,1744072231979,-12505.18626023,0.00015,2]
[357450684,1744072231992,-1865.45817321,0.00015,2]
[357450685,1744072232013,-709.84696431,0.00015,2]
[357450686,1744072232026,-47140.55952288,0.00015,2]
[357450687,1744072232039,-424.91916695,0.00015,2]
[357450695,1744072237904,-445.42957939,0.00015,2]
[357450696,1744072237962,-3476.6,0.00015,2]
[357450697,1744072238064,-196.8037,0.00015,2]
[357450698,1744072238076,-65857.87709162,0.00015,2]
[357450699,1744072238089,-711.95712736,0.00015,2]
[357450700,1744072238123,-1520.0,0.00015,2]
[357450701,1744072238139,-467.9000241,0.00015,2]
[357450702,1744072238151,-514.60166642,0.00015,2]
[357450703,1744072238163,-661.21728265,0.00015,2]
[357450704,1744072238176,-735.0921918,0.00015,2]
[357450705,1744072238197,-134294.72516712,0.00015,2]
[357450845,1744072239985,-947.66428876,0.00015,2]
[357450861,1744072240151,-1065.58453309,0.00015,2]
[357450864,1744072240164,-1196.1978996,0.00015,2]
[357450866,1744072240176,-47786.97869324,0.00015,2]
[357450875,1744072240259,-795.845,0.00015,2]
[357454555,1744072325578,151.0,0.0004,30]
[357454556,1744072335282,200.0,0.0004,30]
[357454557,1744072376765,500.0,0.0004,30]
[357454558,1744072395651,500.0,0.0004,30]
[357454559,1744072443273,-164.13,0.00014925,2]
[357454560,1744072443296,-57.10742989,0.00014999,2]
[357454561,1744072464527,-158.127,0.00014924,2]
[357454563,1744072547493,-3410.108508,0.00014925,2]
[357454564,1744072619171,540.0,0.0004,30]
[357454565,1744072652751,1000.0,0.0004,30]
[357454566,1744072671325,1000.0,0.0004,30]
[357454569,1744072689615,1000.0,0.0004,30]
[357454572,1744072700561,1000.0,0.0004,30]
[357454575,1744072710762,643.706,0.00035154,41]
[357454576,1744072724289,1000.0,0.0004,31]
[357454577,1744072736049,1000.0,0.0004,32]
[357454579,1744072790953,500.0,0.0004,120]
[357454580,1744072886278,167.5809628,0.0004,30]
[357454581,1744072938487,152.0,0.00037636,47]
[357454582,1744072938570,152.0,0.00037522,46]
[357454583,1744072938682,152.0,0.00037409,45]
[357454584,1744072939008,152.0,0.00037296,44]
[357454585,1744072939359,152.0,0.00037183,43]
[357454586,1744072939662,152.0,0.0003707,42]
[357454587,1744072940036,152.0,0.00036957,41]
[357454588,1744072940313,152.0,0.00036843,40]
[357454589,1744072940898,152.0,0.0003673,39]
[357454590,1744072941262,152.0,0.00036617,38]
[357454591,1744072941516,152.0,0.00036504,37]
[357454592,1744072941818,152.0,0.00036391,36]
[357454593,1744072942111,152.0,0.00036278,35]
[357454594,1744072942426,152.0,0.00036164,34]
[357454595,1744072942725,152.0,0.00036051,33]
[357454596,1744072943025,152.0,0.00035938,32]
[357454597,1744072943320,152.0,0.00035825,31]
[357454598,1744072943648,152.0,0.00035712,30]
[357454599,1744072951079,645.65,0.00035671,120]
[357454600,1744072960724,1225.89183689,0.0004,30]
[357454601,1744072961494,-627.61649703,0.00014988,2]
[357454602,1744073096120,4525.88526394,0.0004,30]
[357454603,1744073118231,205.77121186,0.0004,30]
[357454604,1744073145604,190.0,0.0004,30]
[357454605,1744073160758,-1671.48162139,0.00014958,2]
[357454606,1744073184561,185.0,0.0004,30]
[357454625,1744073274120,10000.0,0.0004,120]
[357454626,1744073324498,-771.966,0.000149,2]
[357454627,1744073381128,-167.45018124,0.00014973,2]
[357454628,1744073427564,170.39,0.00013442,2]
[357454635,1744073432044,-300.0,0.00014999,2]
[357454636,1744073432054,-2400.26762052,0.00015,2]
[357454637,1744073432066,-2937.37850542,0.00015,2]
[357454638,1744073432078,-489.38511936,0.00015,2]
[357454639,1744073432089,-40852.17131733,0.00015,2]
[357454640,1744073432104,-2361.72927958,0.00015,2]
[357454641,1744073432116,-1368.93615679,0.00015,2]
[357454642,1744073432151,-459.09676706,0.00015,2]
[357454643,1744073432163,-1067.87039674,0.00015,2]
[357454644,1744073432262,-981.13199423,0.00015,2]
[357454645,1744073432273,-5898.70911555,0.00015,2]
[357454743,1744073439308,-445.60803611,0.00015,2]
[357454747,1744073439336,-4691.69643619,0.00015,2]
[357454750,1744073439348,-282.23840945,0.00015,2]
[357454752,1744073439359,-1344.9902802,0.00015,2]
[357454754,1744073439375,-393.69097478,0.00015,2]
[357454757,1744073439390,-1370.46031982,0.00015,2]
[357454759,1744073439402,-114338.20470932,0.00015,2]
[357454761,1744073439411,-531.06568626,0.00015048,2]
[357454763,1744073439421,-8931.7709697,0.00015058,2]
[357454765,1744073439431,-10493.68380184,0.00015058,2]
[357454768,1744073439447,-326.45,0.00015058,2]
[357454871,1744073440471,-14183.40178976,0.00015058,2]
[357454873,1744073440483,-54181.31710062,0.00015068,2]
[357454875,1744073440495,-1919.71707772,0.00015068,2]
[357454877,1744073440641,-73075.09457986,0.00015068,2]
[357454878,1744073440651,-440.42116272,0.00015073,2]
[357454879,1744073440661,-612.55158491,0.00015073,2]
[357454880,1744073440671,-500.0,0.00015073,2]
[357454882,1744073440681,-5000.0,0.00015088,2]
[357454884,1744073440691,-3333.88285146,0.000152,2]
[357454886,1744073440702,-278.5955,0.000153,2]
[357454888,1744073440712,-12645.60298544,0.000154,2]
[357454890,1744073440722,-1671.48162131,0.00015507,2]
[357454892,1744073440732,-3333.88285138,0.00015722,2]
[357454894,1744073440742,-1671.48162131,0.00016056,2]
[357454896,1744073440751,-3333.88285138,0.00016244,2]
[357454898,1744073440762,-420.0,0.00016416,2]
[357454900,1744073440771,-1671.48162131,0.00016605,2]
[357454902,1744073440781,-3333.88285138,0.00016767,2]
[357454904,1744073440791,-250.0,0.00016771,2]
[357454906,1744073440801,-500.0,0.00016809,2]
[357454908,1744073440811,-2000.0,0.00016916,2]
[357454910,1744073440821,-5862.51,0.00016972,2]
[357454913,1744073440837,-500.0,0.00017041,2]
[357454915,1744073440847,-1671.48162131,0.00017154,2]
[357454917,1744073440857,-3692.76,0.00017245,2]
[357454919,1744073440866,-2000.0,0.00017275,2]
[357454921,1744073440876,-150.0,0.00017275,2]
[357454923,1744073440887,-1000.0,0.0001728,2]
[357454925,1744073440896,-3333.88285138,0.00017289,2]
[357454927,1744073440906,-300.0,0.00017406,2]
[357454929,1744073440917,-3044.5,0.00017408,2]
[357454931,1744073440929,-159.47,0.00017408,2]
[357454933,1744073440939,-195.36,0.00017411,2]
[357454935,1744073440949,-3648.79,0.00017416,2]
[357454937,1744073440960,-200.0,0.00017445,2]
[357454940,1744073440971,-200.0,0.00017501,2]
[357454942,1744073440982,-163.43,0.00017555,2]
[357454944,1744073440992,-163.43,0.00017564,2]
[357454946,1744073441003,-163.43,0.00017573,2]
[357454948,1744073441013,-163.43,0.00017582,2]
[357454950,1744073441023,-163.43,0.00017591,2]
[357454952,1744073441033,-163.43,0.00017599,2]
[357454954,1744073441043,-163.43,0.00017608,2]
[357454956,1744073441054,-163.43,0.00017617,2]
[357454958,1744073441065,-163.43,0.00017626,2]
[357454961,1744073441077,-163.43,0.00017634,2]
[357454963,1744073441086,-163.43,0.00017643,2]
[357454965,1744073441097,-1671.48162131,0.00017704,2]
[357454967,1744073441109,-16513.62,0.00017719,2]
[357454969,1744073441122,-9999.99,0.00017728,2]
[357454971,1744073441134,-9999.99,0.00017728,2]
[357454973,1744073441144,-311.0,0.00017728,2]
[357454975,1744073441155,-370.22,0.00017728,2]
[357454978,1744073441165,-832.33,0.00017728,2]
[357454980,1744073441175,-8688.26,0.00017728,2]
[357454982,1744073441185,-150.99,0.00017728,2]
[357454984,1744073441195,-150.99,0.00017728,2]
[357454986,1744073441205,-3333.88285138,0.00017811,2]
[357454988,1744073441215,-166.66,0.000179,2]
[357454990,1744073441225,-393.0,0.00017966,2]
[357454992,1744073441235,-12000.0,0.00018,2]
[357454994,1744073441246,-1407.44,0.00018018,2]
[357454996,1744073441256,-1671.48162131,0.00018253,2]
[357454998,1744073441266,-171.19959555,0.00018332,2]
[357455000,1744073441276,-3333.88285138,0.00018333,2]
[357455002,1744073441287,-525.41,0.00018565,2]
[357455004,1744073441298,-200.0,0.000187,2]
[357455006,1744073441308,-7622.73,0.000187,2]
[357455008,1744073441319,-150.0,0.00018777,2]
[357455010,1744073441329,-1671.48162131,0.00018802,2]
[357455012,1744073441340,-200.0,0.00018812,7]
[357455015,1744073441351,-3333.88285138,0.00018856,2]
[357455017,1744073441361,-25990.37125225,0.00019,2]
[357455019,1744073441371,-250.0,0.00019,2]
[357455021,1744073441381,-159.47,0.00019148,2]
[357455023,1744073441391,-185.26,0.00019161,2]
[357455025,1744073441402,-500.0,0.00019178,2]
[357455027,1744073441412,-1671.48162131,0.00019351,2]
[357455029,1744073441422,-3333.88285138,0.00019378,2]
[357455031,1744073441432,-1000.0,0.0001944,2]
[357455033,1744073441443,-211.0,0.00019454,2]
[357455035,1744073441454,-158200.7445,0.000198,2]
[357455037,1744073441465,-151.0,0.000198,2]
[357455039,1744073441475,-199.83952,0.000198,2]
[357455042,1744073441485,-151.0,0.000198,2]
[357455043,1744073441495,-151.0,0.000198,2]
[357455046,1744073441505,-204.233854,0.000198,2]
[357455048,1744073441515,-151.0,0.000198,2]
[357455050,1744073441526,-195.103353,0.000198,2]
[357455052,1744073441535,-195.103353,0.000198,2]
[357455054,1744073441546,-151.0,0.000198,2]
[357455056,1744073441556,-151.0,0.000198,2]
[357455058,1744073441566,-176.730907,0.000198,2]
[357455060,1744073441575,-176.730907,0.000198,2]
[357455062,1744073441585,-151.0,0.000198,2]
[357455064,1744073441596,-151.0,0.000198,2]
[357455066,1744073441607,-151.0,0.000198,2]
[357455068,1744073441616,-218.543246,0.000198,2]
[357455070,1744073441626,-663.178584,0.000198,2]
[357455072,1744073441637,-218.543246,0.000198,2]
[357455074,1744073441647,-663.178584,0.000198,2]
[357455076,1744073441657,-168.97645066,0.000199,2]
[357455078,1744073441668,-1671.48162131,0.000199,2]
[357455080,1744073441678,-3333.88285138,0.000199,2]
[357455082,1744073441688,-160.13618404,0.000199,2]
[357455084,1744073441698,-204.5325678,0.000199,3]
[357455086,1744073441708,-12017.27678588,0.000199,2]
[357455088,1744073441719,-643.70171748,0.000199,2]
[357455090,1744073441728,-151.0,0.00019923,2]
[357455092,1744073441738,-23900.0,0.00019936,2]
[357455094,1744073441748,-500.0,0.00019973,2]
[357455097,1744073441758,-500.0,0.00019973,2]
[357455099,1744073441768,-500.0,0.00019973,2]
[357455101,1744073441778,-151.0,0.00019986,2]
[357455103,1744073441789,-153.368664,0.00019986,2]
[357455105,1744073441799,-219.495117,0.00019986,2]
[357455107,1744073441810,-128412.5260267,0.00019986,2]
[357455109,1744073441819,-8878.9723236,0.00019986,2]
[357455111,1744073441829,-24953.7773118,0.00019986,2]
[357455113,1744073441839,-217.897912,0.00019986,2]
[357455115,1744073441849,-151.0,0.00019986,2]
[357455117,1744073441861,-195.103353,0.00019986,2]
[357455119,1744073441871,-195.103353,0.00019986,2]
[357455121,1744073441881,-151.0,0.00019986,2]
[357455123,1744073441890,-151.0,0.00019986,2]
[357455125,1744073441900,-176.730907,0.00019986,2]
[357455127,1744073441910,-176.730907,0.00019986,2]
[357455129,1744073441922,-151.0,0.00019986,2]
[357455131,1744073441932,-151.0,0.00019986,2]
[357455133,1744073441942,-202.990874,0.00019986,2]
[357455135,1744073441952,-218.543246,0.00019986,2]
[357455137,1744073441962,-663.178584,0.00019986,2]
[357455139,1744073441973,-218.543246,0.00019986,2]
[357455141,1744073441983,-663.178584,0.00019986,2]
[357455143,1744073441993,-2317.0,0.0002,2]
[357455145,1744073442003,-3784868.86419292,0.0002,2]
[357455147,1744073442013,-7422.00283238,0.0002,4]
[357455149,1744073442023,-476.18817829,0.0002,10]
[357455151,1744073442034,-19892.54899955,0.0002,2]
[357455153,1744073442044,-194.52428847,0.0002,2]
[357455155,1744073442054,-557331.42797397,0.0002,2]
[357455292,1744073443351,-12.45232518,0.0002,2]
[357455447,1744073445045,-388132.29121998,0.0002,2]
[357455449,1744073445059,-92286.0035263,0.0002,2]
[357455564,1744073446230,-262.02932099,0.0002,2]
[357455575,1744073446341,-2807.92204793,0.0002,2]
[357456982,1744073461160,185.0,0.0004,30]
[357459477,1744073608178,654.8812012,0.0004,30]
[357459478,1744073704068,585.76995071,0.0002756,30]
[357459483,1744073910796,514.965,0.00035157,41]
[357459485,1744074034143,591.84,0.00035671,120]
[357459487,1744074217331,211.14092114,0.00038,120]
[357459488,1744074220716,211.14092114,0.0004,120]
[357459489,1744074396826,522.0,0.0004,30]
[357459490,1744074404999,-23421.48523719,0.00018,2]
[357459491,1744074405023,-647.363491,0.00019212,2]
[357459492,1744074405045,-1376.32,0.00019309,2]
[357459493,1744074405067,-903.04,0.00019587,2]
[357459494,1744074405089,-45757.44,0.00019672,2]
[357459495,1744074405112,-283.8123223,0.00019799,2]
[357459496,1744074405133,-500.0,0.00019873,2]
[357459497,1744074405155,-434.6631,0.000199,2]
[357459498,1744074405182,-224.1887,0.000199,2]
[357459499,1744074405209,-169.3174,0.000199,2]
[357459500,1744074405235,-6671.0414,0.000199,2]
[357459501,1744074405258,-1579.7874,0.000199,2]
[357459502,1744074405281,-1230.8308,0.000199,2]
[357459503,1744074405302,-36055.9761,0.000199,2]
[357459504,1744074405323,-1000.0,0.000199,2]
[357459505,1744074405345,-500.0,0.000199,2]
[357459506,1744074405366,-12306.8465,0.000199,2]
[357459507,1744074405388,-168.97645066,0.000199,2]
[357459508,1744074405410,-6558.7344,0.000199,2]
[357459509,1744074405430,-546.2296,0.000199,2]
[357459510,1744074405451,-1000.0,0.000199,2]
[357459511,1744074405473,-2500.0,0.000199,2]
[357459512,1744074405498,-524.4953891,0.000199,2]
[357459513,1744074405521,-2448.63004608,0.000199,2]
[357459514,1744074405543,-62129.7314,0.000199,2]
[357459515,1744074405563,-160.13618404,0.000199,2]
[357459516,1744074405583,-668.2274724,0.000199,2]
[357459517,1744074405603,-200.0,0.00019958,2]
[357459518,1744074405626,-150.99,0.00019958,2]
[357459519,1744074405647,-9999.99,0.00019958,2]
[357459520,1744074405668,-150.99,0.00019958,2]
[357459521,1744074405689,-279.54937858,0.00019973,2]
[357459522,1744074405709,-200.50540931,0.00019973,2]
[357459523,1744074405731,-500.0,0.00019973,2]
[357459524,1744074405753,-500.0,0.00019973,2]
[357459525,1744074405773,-500.0,0.00019973,2]
[357459526,1744074405794,-150.0,0.00019999,2]
[357459527,1744074405815,-1006.9919,0.00019999,2]
[357459528,1744074405835,-2190.0,0.0002,2]
[357459529,1744074405860,-85403.70991934,0.0002,2]
[357459530,1744074428204,10000.0,0.0004,30]
[357459531,1744074433705,522.50660502,0.0004,30]
[357459533,1744074485853,-1695.3577,0.000198,2]
[357459534,1744074485890,-285.0,0.00019899,2]
[357459535,1744074485912,-8738.73277988,0.000199,2]
[357459536,1744074485936,-1000.0,0.000199,2]
[357459537,1744074485958,-500.0,0.00019973,2]
[357459538,1744074485980,-500.0,0.00019973,2]
[357459539,1744074486002,-500.0,0.00019973,2]
[357459540,1744074486024,-215.72,0.0001999,3]
[357459541,1744074486046,-1967.0,0.0002,2]
[357459542,1744074486072,-984598.18952012,0.0002,2]
[357459544,1744074500819,341.0,0.0004,30]
[357459545,1744074516785,341.00000006,0.0004,30]
[357459546,1744074524149,3543.22491355,0.0004,30]
[357459547,1744074529801,301.0,0.0004,30]
[357459564,1744074632302,-156.0,0.00017074,2]
[357459565,1744074632312,-500.0,0.000199,2]
[357459566,1744074632321,-275.32180886,0.000199,2]
[357459825,1744074638606,-3353.94450525,0.000199,2]
[357459826,1744074638619,-883.23288589,0.000199,2]
[357459827,1744074638628,-831.29581266,0.000199,2]
[357459828,1744074638668,-168.70418734,0.000199,2]
[357459830,1744074638678,-387.03961716,0.000199,2]
[357459833,1744074638703,-2112.96038284,0.000199,2]
[357459835,1744074638713,-3911.6617,0.000199,2]
[357459837,1744074638723,-500.0,0.000199,2]
[357459839,1744074638733,-500.0,0.00019973,2]
[357459841,1744074638743,-500.0,0.00019973,2]
[357459843,1744074638753,-537.82194008,0.00019973,2]
[357459845,1744074638763,-1771.0,0.0002,2]
[357459847,1744074638773,-29674.45597708,0.0002,2]
[357459850,1744074638789,-379.75986534,0.0002,2]
[357459854,1744074638820,-1380.94,0.0002,2]
[357460022,1744074640516,-2721.24380611,0.0002,2]
[357460024,1744074640529,-4170.42919275,0.0002,2]
[357460030,1744074640578,-4356.061962,0.0002,2]
[357460042,1744074640700,-585316.69227266,0.0002,2]
[357460045,1744074640712,-5554.0,0.0002,2]
[357460047,1744074640724,-259.76064177,0.0002,2]
[357460342,1744074643772,-6923.49456589,0.0002,2]
[357460645,1744074646538,-918.0,0.0002,2]
[357460647,1744074646550,-679.0,0.0002,2]
[357460649,1744074646560,-255.999985,0.0002,2]
[357460654,1744074646600,-5228.610486,0.0002,2]
[357460656,1744074646612,-600.56188723,0.0002,2]
[357460659,1744074646625,-5036.17999968,0.0002,2]
[357460661,1744074646639,-1306.43550005,0.0002,2]
[357460663,1744074646653,-739.868,0.0002,2]
[357460665,1744074646665,-1221.88768,0.0002,2]
[357460668,1744074646676,-806.49119933,0.0002,2]
[357460670,1744074646688,-532.70130004,0.0002,2]
[357460672,1744074646699,-4975.0,0.0002,2]
[357460674,1744074646713,-389.68587605,0.0002,2]
[357463212,1744075056761,542.52,0.00035671,120]
[357463213,1744075371221,196.58181478,0.0004,30]
[357463456,1744075710355,152.27263588,0.0004,30]
[357463459,1744075727824,8808.38629766,0.0003,30]
[357463463,1744075757961,152.0,0.00037696,30]
[357463467,1744075806196,-150.0,0.00014999,2]
[357463469,1744075806232,-8552.51000513,0.00015,2]
[357463471,1744075806280,-6133.88958201,0.00015,2]
[357463474,1744075812155,-179.21,0.0001499,2]
[357463475,1744075814843,-179.21,0.0001499,2]
[357463476,1744075814871,-179.21,0.0001499,2]
[357463477,1744075814898,-228.23,0.0001499,2]
[357463478,1744075816288,-358.42,0.0001499,2]
[357463479,1744075825427,183.14696963,0.000384,33]
[357463480,1744075826670,-181.07,0.0001499,2]
[357463481,1744075827715,-181.07,0.0001499,2]
[357463482,1744075827739,-181.07,0.0001499,2]
[357463491,1744075831570,-630.24830038,0.00015,2]
[357463492,1744075831584,-2475.883476,0.00015,2]
[357463493,1744075831665,-11642.35769434,0.00015,2]
[357463494,1744075831677,-839.44657326,0.00015,2]
[357463495,1744075831688,-15494.70293591,0.00015,2]
[357463496,1744075831778,-2424.76396324,0.00015,2]
[357463497,1744075831789,-2925.23664195,0.00015,2]
[357463498,1744075831801,-393.55179488,0.00015,2]
[357463499,1744075831812,-13529.32880902,0.00015,2]
[357463500,1744075831823,-1437.26919482,0.00015,2]
[357463501,1744075831852,-9633.2821884,0.00015,2]
[357463502,1744075831864,-1885.935,0.00015,2]
[357463503,1744075831875,-1111.97483759,0.00015,2]
[357463504,1744075831887,-786.06885229,0.00015,2]